bitfinex/quotes_BTCUSD_20250422
["timestamp","ask_amount","ask_price","bid_price","bid_amount"]
[1745353932281,0.00238752,91151.0,91140.0,0.51150134]
[1745353932496,0.00238752,91151.0,91140.0,0.53060922]
[1745353933136,0.00538752,91151.0,91140.0,0.53060922]
[1745353933356,0.00238752,91151.0,91140.0,0.53060922]
[1745353934154,0.00338752,91151.0,91140.0,0.53060922]
[1745353934574,0.00438752,91151.0,91140.0,0.53060922]
[1745353935830,0.01438752,91151.0,91140.0,0.53060922]
[1745353939113,0.0482,91149.0,91140.0,0.01910788]
[1745353939322,0.11614346,91148.0,91132.0,0.000424]
[1745353939527,0.0482,91147.0,91132.0,0.01904598]
[1745353939731,0.00238752,91146.0,91132.0,0.01904598]
[1745353941043,0.00238752,91146.0,91132.0,0.02004598]
[1745353941419,0.01238752,91146.0,91132.0,0.01904598]
[1745353941712,0.01238752,91146.0,91132.0,0.02204598]
[1745353943976,0.01238752,91146.0,91136.0,0.25575067]
[1745353944193,0.01,91146.0,91136.0,0.52247395]
[1745353944394,0.01,91146.0,91137.0,0.01097249]
[1745353944599,0.01,91146.0,91136.0,0.74192569]
[1745353944821,0.01,91146.0,91136.0,0.51150134]
[1745353945441,0.01,91146.0,91137.0,0.01097249]
[1745353945641,0.01,91146.0,91136.0,0.51150134]
[1745353946298,0.01,91146.0,91136.0,0.51250134]
[1745353949827,0.01,91146.0,91136.0,0.25675067]
[1745353956191,0.0482,91145.0,91136.0,0.25675067]
[1745353957017,0.0482,91145.0,91136.0,0.25575067]
[1745353958402,0.0482,91145.0,91136.0,0.25675067]
[1745353968576,0.0482,91145.0,91136.0,0.001]
[1745353969385,0.01,91137.0,91136.0,0.001]
[1745353969635,0.01,91137.0,91136.0,0.22045224]
[1745353969820,0.01,91137.0,91136.0,0.2226466]
[1745353970050,0.01,91137.0,91136.0,0.22045224]
[1745353970350,0.01,91146.0,91145.0,0.21943057]
[1745353970551,0.01,91146.0,91142.0,0.2194355]
[1745353970771,0.01,91146.0,91142.0,0.23040739]
[1745353970982,0.01,91146.0,91142.0,0.2194355]
[1745353971402,0.01,91146.0,91143.0,0.01097176]
[1745353972107,0.011,91146.0,91143.0,0.2194346]
[1745353972309,0.011,91146.0,91141.0,0.23040761]
[1745353972932,0.013,91146.0,91143.0,0.21943521]
[1745353973294,0.013,91146.0,91144.0,0.21943257]
[1745353973502,0.011,91146.0,91144.0,0.21943257]
[1745353974097,0.012,91146.0,91144.0,0.21943288]
[1745353974295,0.012,91146.0,91143.0,0.23040691]
[1745353974575,0.012,91146.0,91141.0,0.23041178]
[1745353974576,0.011,91146.0,91141.0,0.23041178]
[1745353974960,0.012,91146.0,91142.0,0.01097189]
[1745353975155,0.012,91146.0,91143.0,0.01097176]
[1745353975393,0.012,91146.0,91142.0,0.23040927]
[1745353975598,0.013,91146.0,91142.0,0.23040927]
[1745353975798,0.014,91146.0,91142.0,0.23040927]
[1745353976100,0.011,91146.0,91142.0,0.23040927]
[1745353976450,0.013,91146.0,91143.0,0.01097176]
[1745353976608,0.011,91146.0,91142.0,0.23040927]
[1745353976771,0.01,91146.0,91144.0,0.2194326]
[1745353976969,0.012,91146.0,91144.0,0.2194326]
[1745353977227,0.013,91146.0,91144.0,0.2194326]
[1745353977602,0.013,91146.0,91140.0,0.23041009]
[1745353977603,0.012,91146.0,91139.0,0.21944399]
[1745353977780,0.012,91146.0,91140.0,0.23041381]
[1745353977987,0.014,91146.0,91140.0,0.23041381]
[1745353978188,0.014,91146.0,91137.0,0.23042079]
[1745353978189,0.014,91146.0,91139.0,0.21944457]
[1745353978416,0.014,91146.0,91138.0,0.23041534]
[1745353978417,0.012,91146.0,91137.0,0.23042229]
[1745353978628,0.012,91146.0,91139.0,0.2304151]
[1745353978860,0.01,91146.0,91141.0,0.23041094]
[1745353978994,0.012,91146.0,91141.0,0.23041094]
[1745353979188,0.012,91146.0,91138.0,0.01097237]
[1745353979443,0.012,91146.0,91141.0,0.21943821]
[1745353979867,0.01,91146.0,91141.0,0.21943821]
[1745353980039,0.011,91146.0,91142.0,0.21943762]
[1745353980384,0.011,91146.0,91143.0,0.21943506]
[1745353980601,0.011,91146.0,91142.0,0.01097189]
[1745353981165,0.011,91146.0,91143.0,0.21943506]
[1745353981499,0.011,91146.0,91145.0,0.21943057]
[1745353981737,0.013,91146.0,91145.0,0.21943057]
[1745353981940,0.013,91146.0,91144.0,0.21943242]
[1745353982284,0.011,91146.0,91144.0,0.21943242]
[1745353982540,0.011,91146.0,91143.0,0.21943492]
[1745353982722,0.013,91146.0,91143.0,0.23040668]
[1745353982924,0.01,91146.0,91144.0,0.21943209]
[1745353983374,0.012,91146.0,91144.0,0.21943209]
[1745353983956,0.012,91146.0,91143.0,0.01097176]
[1745353983957,0.013,91146.0,91143.0,0.23040704]
[1745353984361,0.012,91146.0,91143.0,0.23040704]
[1745353984679,0.014,91146.0,91143.0,0.23040704]
[1745353985109,0.012,91146.0,91143.0,0.23040704]
[1745353985462,0.014,91146.0,91143.0,0.23040704]
[1745353985642,0.014,91146.0,91142.0,0.23040511]
[1745353985841,0.012,91146.0,91136.0,0.73095182]
[1745353986049,0.012,91146.0,91138.0,0.407955]
[1745353986254,0.013,91146.0,91136.0,0.74192443]
[1745353986569,0.011,91146.0,91137.0,0.406597]
[1745353986748,0.01,91146.0,91137.0,0.62604491]
[1745353986953,0.01,91146.0,91138.0,0.276554]
[1745353987197,0.01,91146.0,91137.0,0.429118]
[1745353987423,0.01,91146.0,91138.0,0.228361]
[1745353987760,0.01,91146.0,91138.0,0.21944743]
[1745353987999,0.01,91146.0,91138.0,0.2304198]
[1745353988429,0.01,91146.0,91137.0,0.21944916]
[1745353988563,0.01,91146.0,91138.0,0.164867]
[1745353988983,0.0451,91156.0,91138.0,0.164867]
[1745353989303,0.001,91146.0,91138.0,0.164867]
[1745353989806,0.001,91146.0,91138.0,0.38431265]
[1745353989987,0.0451,91156.0,91138.0,0.21944565]
[1745353990187,0.0461,91156.0,91139.0,0.21944298]
[1745353990548,0.0461,91156.0,91137.0,0.21944946]
[1745353990749,0.0461,91156.0,91138.0,0.576311]
[1745353991146,0.0461,91156.0,91138.0,0.414932]
[1745353991309,0.00238752,91155.0,91136.0,0.73094903]
[1745353991679,0.00238752,91155.0,91146.0,0.25575067]
[1745353993179,0.00438752,91155.0,91146.0,0.25575067]
[1745353993822,0.002,91155.0,91146.0,0.25575067]
[1745353994020,0.004,91155.0,91146.0,0.25575067]
[1745353999681,0.00638752,91155.0,91146.0,0.25575067]
[1745353999876,0.0451,91154.0,91146.0,0.25575067]
[1745354000836,0.096,91149.0,91135.0,0.1810535]
[1745354001035,0.0492,91140.0,91131.0,0.000424]
[1745354001231,0.04918752,91139.0,91131.0,0.000424]
[1745354001437,0.0492,91138.0,91131.0,0.000424]
[1745354001645,0.05158752,91137.0,91131.0,0.000424]
[1745354001861,0.04918752,91136.0,91131.0,0.000424]
[1745354002033,0.0468,91134.0,91131.0,0.000424]
[1745354002249,0.16534346,91133.0,91131.0,0.000424]
[1745354003633,0.16934346,91133.0,91131.0,0.000424]
[1745354006051,0.17934346,91133.0,91131.0,0.000424]
[1745354009233,0.17734346,91133.0,91131.0,0.000424]
[1745354009719,0.17934346,91133.0,91131.0,0.000424]
[1745354009927,0.17734346,91133.0,91131.0,0.000424]
[1745354010354,0.17934346,91133.0,91131.0,0.000424]
[1745354011022,0.17734346,91133.0,91131.0,0.000424]
[1745354011222,0.17934346,91133.0,91131.0,0.000424]
[1745354013183,0.20295781,91133.0,91131.0,0.000424]
[1745354013541,0.22784346,91133.0,91131.0,0.000424]
[1745354014600,0.22584346,91133.0,91131.0,0.000424]
[1745354014789,0.22684346,91133.0,91131.0,0.000424]
[1745354014999,0.22484346,91133.0,91131.0,0.000424]
[1745354015234,0.22384346,91133.0,91131.0,0.000424]
[1745354015456,0.22584346,91133.0,91131.0,0.000424]
[1745354015686,0.22684346,91133.0,91131.0,0.000424]
[1745354015884,0.22784346,91133.0,91131.0,0.000424]
[1745354016291,0.22884346,91133.0,91131.0,0.000424]
[1745354017111,0.27594066,91133.0,91131.0,0.000424]
[1745354017446,0.27355314,91133.0,91131.0,0.000424]
[1745354017844,0.59301261,91133.0,91131.0,0.000424]
[1745354018022,0.59001261,91133.0,91132.0,0.00051021]
[1745354018203,0.58801261,91133.0,91132.0,0.00051021]
[1745354018364,0.37555314,91133.0,91132.0,0.00151021]
[1745354018923,0.37555314,91133.0,91132.0,0.00051021]
[1745354019098,0.37955314,91133.0,91132.0,0.01734293]
[1745354019304,0.34699679,91133.0,91132.0,0.01734293]
[1745354020311,0.34699679,91133.0,91132.0,0.00151021]
[1745354021752,0.01454085,91132.0,91110.0,0.05410978]
[1745354021960,0.0497,91128.0,91110.0,0.07033843]
[1745354022184,0.0476,91125.0,91110.0,0.01622865]
[1745354022390,0.0497,91118.0,91110.0,0.01622865]
[1745354022617,0.0973,91116.0,91110.0,0.01622865]
[1745354022852,0.0497,91112.0,91110.0,0.01622865]
[1745354023075,0.11614346,91111.0,91110.0,0.01922865]
[1745354024065,0.11614346,91111.0,91110.0,0.01622865]
[1745354024316,0.43295592,91111.0,91110.0,0.01622865]
[1745354024552,0.32559679,91111.0,91110.0,0.01822865]
[1745354024775,0.32659679,91111.0,91110.0,0.00213801]
[1745354025004,0.32659679,91111.0,91110.0,0.00113801]
[1745354025206,0.33359679,91111.0,91110.0,0.00113801]
[1745354025823,0.33059679,91111.0,91110.0,0.01724307]
[1745354026029,0.33559679,91111.0,91110.0,0.01724307]
[1745354026371,0.33159679,91111.0,91110.0,0.01624307]
[1745354026723,0.33359679,91111.0,91110.0,0.01624307]
[1745354026905,0.33159679,91111.0,91110.0,0.01624307]
[1745354027105,0.32659679,91111.0,91110.0,0.01624307]
[1745354027285,0.32959679,91111.0,91110.0,0.01624307]
[1745354027493,0.33459679,91111.0,91110.0,0.01624307]
[1745354028945,0.43123679,91111.0,91110.0,0.01624307]
[1745354032452,0.44123679,91111.0,91110.0,0.01624307]
[1745354034896,0.33005594,91111.0,91110.0,0.01624307]
[1745354035110,0.42673594,91111.0,91110.0,0.01624307]
[1745354035620,0.28035594,91111.0,91110.0,0.01624307]
[1745354035839,0.23275594,91111.0,91110.0,0.01624307]
[1745354039784,0.22775594,91111.0,91110.0,0.01624307]
[1745354039993,0.22475594,91111.0,91110.0,0.01624307]
[1745354040591,0.121,91111.0,91110.0,0.01624307]
[1745354041054,0.1331,91111.0,91110.0,0.01624307]
[1745354041456,0.121,91111.0,91110.0,0.01624307]
[1745354044045,0.021,91111.0,91110.0,0.01624307]
[1745354045112,0.017,91111.0,91110.0,0.01624307]
[1745354045548,0.013,91111.0,91110.0,0.01624307]
[1745354045766,0.016,91111.0,91110.0,0.01724307]
[1745354045970,0.018,91111.0,91110.0,0.01724307]
[1745354046187,0.015,91111.0,91110.0,0.01624307]
[1745354046612,0.018,91111.0,91110.0,0.01724307]
[1745354047809,0.00532001,91111.0,91110.0,0.01824307]
[1745354048009,0.00532001,91111.0,91110.0,0.01924307]
[1745354048454,0.00232001,91111.0,91110.0,0.01824307]
[1745354048599,0.00232001,91111.0,91110.0,0.06804307]
[1745354048600,0.001,91111.0,91110.0,0.06804307]
[1745354048805,0.001,91111.0,91110.0,0.47080641]
[1745354049009,0.00238752,91130.0,91120.0,0.51150134]
[1745354050116,0.00238752,91133.0,91120.0,0.51250134]
[1745354050968,0.00238752,91133.0,91120.0,0.25675067]
[1745354051527,0.00238752,91133.0,91120.0,0.51150134]
[1745354051704,0.00238752,91137.0,91120.0,0.51450134]
[1745354051913,0.1,91134.0,91120.0,0.003]
[1745354052057,0.00238752,91133.0,91124.0,0.25575067]
[1745354052462,0.00338752,91133.0,91120.0,0.002]
[1745354052715,0.00338752,91133.0,91123.0,0.25575067]
[1745354052901,0.00238752,91133.0,91120.0,0.25975067]
[1745354053324,0.00238752,91133.0,91120.0,0.39165167]
[1745354053596,0.00438752,91133.0,91124.0,0.001]
[1745354055444,0.00238752,91133.0,91120.0,0.38965167]
[1745354056619,0.00438752,91133.0,91124.0,0.001]
[1745354057234,0.00238752,91133.0,91120.0,0.39065167]
[1745354058090,0.00238752,91133.0,91120.0,0.38965167]
[1745354058837,0.00238752,91133.0,91120.0,0.39065167]
[1745354059975,0.11375594,91134.0,91120.0,0.39065167]
[1745354060158,0.1,91134.0,91120.0,0.39065167]
[1745354061295,0.00238752,91137.0,91120.0,0.38965167]
[1745354061519,0.1,91134.0,91127.0,0.38965167]
[1745354062811,0.102,91134.0,91127.0,0.39065167]
[1745354063020,0.103,91134.0,91127.0,0.39065167]
[1745354067449,0.00238752,91133.0,91127.0,0.39065167]
[1745354068408,0.00238752,91140.0,91127.0,0.38965167]
[1745354068612,0.003,91133.0,91127.0,0.39065167]
[1745354068939,0.00238752,91132.0,91127.0,0.39065167]
[1745354069292,0.00238752,91132.0,91127.0,0.38965167]
[1745354069466,0.00238752,91138.0,91127.0,0.38965167]
[1745354069675,0.1,91134.0,91127.0,0.39065167]
[1745354069887,0.00238752,91133.0,91127.0,0.39065167]
[1745354070309,0.00238752,91136.0,91127.0,0.39065167]
[1745354070517,0.1,91134.0,91127.0,0.39065167]
[1745354070768,0.00238752,91133.0,91127.0,0.38965167]
[1745354071181,0.00238752,91136.0,91127.0,0.39065167]
[1745354071529,0.1,91134.0,91127.0,0.39065167]
[1745354071697,0.002,91132.0,91127.0,0.39165167]
[1745354072526,0.001,91133.0,91127.0,0.39065167]
[1745354072697,0.00338752,91136.0,91127.0,0.39065167]
[1745354072900,0.1,91134.0,91127.0,0.39065167]
[1745354073129,0.00238752,91133.0,91127.0,0.39065167]
[1745354073285,0.00238752,91133.0,91127.0,0.001]
[1745354073487,0.049,91134.0,91127.0,0.001]
[1745354073738,0.0494,91132.0,91127.0,0.001]
[1745354073949,0.11614346,91131.0,91127.0,0.002]
[1745354074151,0.0504,91132.0,91127.0,0.002]
[1745354074370,0.00238752,91131.0,91127.0,0.001]
[1745354074806,0.00238752,91131.0,91127.0,0.002]
[1745354075287,0.00338752,91131.0,91127.0,0.001]
[1745354075423,0.00238752,91131.0,91127.0,0.002]
[1745354075625,0.00338752,91131.0,91127.0,0.002]
[1745354076943,0.00338752,91131.0,91127.0,0.001]
[1745354077145,0.00538752,91131.0,91127.0,0.002]
[1745354077501,0.00538752,91131.0,91127.0,0.001]
[1745354077704,0.00438752,91131.0,91127.0,0.001]
[1745354077906,0.00638752,91131.0,91127.0,0.002]
[1745354078139,0.00438752,91131.0,91127.0,0.002]
[1745354078347,0.00538752,91131.0,91127.0,0.002]
[1745354079888,0.11375594,91130.0,91127.0,0.002]
[1745354080223,0.0494,91128.0,91127.0,0.002]
[1745354080425,0.16315594,91128.0,91127.0,0.002]
[1745354080601,0.0494,91128.0,91127.0,0.002]
[1745354080956,0.0494,91128.0,91127.0,0.001]
[1745354081173,0.0494,91128.0,91127.0,0.002]
[1745354081379,0.05278752,91128.0,91127.0,0.002]
[1745354081831,0.05278752,91128.0,91127.0,0.001]
[1745354081971,0.0504,91128.0,91127.0,0.001]
[1745354083053,0.0524,91128.0,91127.0,0.002]
[1745354087190,0.003,91128.0,91127.0,0.002]
[1745354092382,0.049,91134.0,91127.0,0.002]
[1745354092586,0.00238752,91133.0,91127.0,0.002]
[1745354092985,0.00238752,91138.0,91127.0,0.002]
[1745354093208,0.1,91134.0,91128.0,0.38956681]
[1745354093532,0.101,91134.0,91128.0,0.38956681]
[1745354093995,0.00238752,91133.0,91128.0,0.38956681]
[1745354094455,0.001,91134.0,91128.0,0.38956681]
[1745354094695,0.00238752,91133.0,91128.0,0.38956681]
[1745354095416,0.00238752,91133.0,91127.0,0.001]
[1745354095849,0.001,91133.0,91127.0,0.001]
[1745354096023,0.00338752,91133.0,91127.0,0.001]
[1745354096204,0.00238752,91136.0,91127.0,0.001]
[1745354096410,0.1,91134.0,91127.0,0.001]
[1745354096614,0.00238752,91133.0,91127.0,0.002]
[1745354096813,0.1,91134.0,91127.0,0.002]
[1745354097021,0.00238752,91133.0,91127.0,0.001]
[1745354097226,0.11375594,91137.0,91127.0,0.001]
[1745354097227,0.1,91134.0,91127.0,0.003]
[1745354097426,0.00238752,91133.0,91127.0,0.003]
[1745354097591,0.1,91134.0,91127.0,0.003]
[1745354097789,0.00238752,91133.0,91127.0,0.003]
[1745354098029,0.1,91134.0,91127.0,0.003]
[1745354098231,0.00238752,91133.0,91127.0,0.003]
[1745354098447,0.11375594,91137.0,91127.0,0.003]
[1745354098448,0.1,91134.0,91127.0,0.001]
[1745354098651,0.00238752,91133.0,91127.0,0.001]
[1745354098919,0.1,91134.0,91127.0,0.001]
[1745354099142,0.00238752,91133.0,91127.0,0.001]
[1745354099541,0.00238752,91136.0,91127.0,0.001]
[1745354099745,0.1,91134.0,91127.0,0.001]
[1745354099943,0.00238752,91133.0,91127.0,0.001]
[1745354100393,0.00238752,91136.0,91127.0,0.001]
[1745354100624,0.1,91134.0,91127.0,0.001]
[1745354100844,0.00238752,91133.0,91127.0,0.001]
[1745354101272,0.00238752,91136.0,91127.0,0.001]
[1745354101517,0.1,91134.0,91127.0,0.001]
[1745354101730,0.00238752,91133.0,91127.0,0.001]
[1745354102175,0.00238752,91136.0,91127.0,0.001]
[1745354102302,0.1,91134.0,91127.0,0.001]
[1745354102557,0.00238752,91133.0,91127.0,0.001]
[1745354103476,0.11375594,91132.0,91127.0,0.001]
[1745354103699,0.00238752,91131.0,91123.0,0.16805335]
[1745354103911,0.11375594,91130.0,91123.0,0.16805335]
[1745354104113,0.00238752,91129.0,91123.0,0.16805335]
[1745354105761,0.00238752,91129.0,91123.0,0.16905335]
[1745354105936,0.00338752,91129.0,91123.0,0.17105335]
[1745354109595,0.00338752,91129.0,91123.0,0.003]
[1745354110419,0.0493,91128.0,91123.0,0.003]
[1745354110647,0.00238752,91127.0,91123.0,0.003]
[1745354111377,0.00238752,91127.0,91119.0,0.51140558]
[1745354111569,0.00238752,91127.0,91123.0,0.003]
[1745354111917,0.00238752,91127.0,91123.0,0.002]
[1745354112111,0.00238752,91127.0,91119.0,0.51140558]
[1745354112316,0.00238752,91127.0,91123.0,0.001]
[1745354112517,0.00338752,91127.0,91123.0,0.001]
[1745354112891,0.00338752,91127.0,91119.0,0.51440558]
[1745354114020,0.00238752,91127.0,91119.0,0.51140558]
[1745354114230,0.00338752,91127.0,91123.0,0.002]
[1745354114660,0.00238752,91127.0,91119.0,0.51340558]
[1745354115017,0.00338752,91127.0,91119.0,0.51440558]
[1745354115561,0.00238752,91127.0,91119.0,0.51140558]
[1745354115817,0.00338752,91127.0,91123.0,0.002]
[1745354117458,0.00238752,91127.0,91123.0,0.001]
[1745354118116,0.00338752,91127.0,91123.0,0.001]
[1745354118699,0.00238752,91127.0,91123.0,0.001]
[1745354118901,0.00338752,91127.0,91123.0,0.003]
[1745354140917,0.21948114,91124.0,91123.0,0.003]
[1745354141119,0.06192837,91124.0,91123.0,0.003]
[1745354141330,0.27568431,91124.0,91123.0,0.003]
[1745354141563,0.27329679,91124.0,91123.0,0.003]
[1745354141989,0.27329679,91124.0,91123.0,0.001]
[1745354142192,0.01454085,91123.0,91110.0,0.26631408]
[1745354142369,0.11614346,91122.0,91110.0,0.26631408]
[1745354143632,0.11614346,91122.0,91110.0,0.26831408]
[1745354143827,0.11614346,91122.0,91110.0,0.27131408]
[1745354144034,0.11714346,91122.0,91110.0,0.27131408]
[1745354146210,0.0451,91121.0,91110.0,0.27131408]
[1745354146354,0.11614346,91120.0,91110.0,0.27131408]
[1745354147001,0.11614346,91120.0,91110.0,0.26631408]
[1745354147430,0.11614346,91120.0,91110.0,0.27031408]
[1745354147875,0.11614346,91120.0,91110.0,0.26731408]
[1745354148663,0.11614346,91120.0,91110.0,0.26631408]
[1745354148839,0.11614346,91120.0,91110.0,0.26731408]
[1745354149055,0.11714346,91120.0,91110.0,0.27031408]
[1745354149843,0.0467,91119.0,91110.0,0.27031408]
[1745354150045,0.16124346,91118.0,91110.0,0.27031408]
[1745354150839,0.16124346,91118.0,91110.0,0.26731408]
[1745354151037,0.16124346,91118.0,91110.0,0.27031408]
[1745354151743,0.16124346,91118.0,91110.0,0.26931408]
[1745354151944,0.16124346,91118.0,91110.0,0.27031408]
[1745354152086,0.16124346,91118.0,91110.0,0.26931408]
[1745354152285,0.16124346,91118.0,91110.0,0.26631408]
[1745354152489,0.16124346,91118.0,91110.0,0.26731408]
[1745354152739,0.16224346,91118.0,91110.0,0.27031408]
[1745354154805,0.0451,91111.0,91110.0,0.01461129]
[1745354155008,0.20794346,91111.0,91110.0,0.01461129]
[1745354155214,0.30794346,91111.0,91110.0,0.01461129]
[1745354155367,0.30555594,91111.0,91110.0,0.01461129]
[1745354155565,0.30555594,91111.0,91110.0,0.01161129]
[1745354155767,0.30555594,91111.0,91110.0,0.01061129]
[1745354155979,0.30755594,91111.0,91110.0,0.001]
[1745354156332,0.26045594,91111.0,91109.0,0.0004238]
[1745354156538,0.16124346,91110.0,91109.0,0.0004238]
[1745354156896,0.26124346,91110.0,91109.0,0.0004238]
[1745354157056,0.25885594,91110.0,91109.0,0.0004238]
[1745354157672,0.54061166,91110.0,91109.0,0.01879865]
[1745354157872,0.54061166,91110.0,91109.0,0.0004238]
[1745354158286,0.54261166,91110.0,91109.0,0.0004238]
[1745354158763,0.54461166,91110.0,91109.0,0.0004238]
[1745354159118,0.54061166,91110.0,91109.0,0.0004238]
[1745354159319,0.54461166,91110.0,91109.0,0.0004238]
[1745354159521,0.54861166,91110.0,91109.0,0.0004238]
[1745354159740,0.54861166,91110.0,91109.0,0.01836879]
[1745354160221,0.32909679,91110.0,91109.0,0.01836879]
[1745354160632,0.54861166,91110.0,91109.0,0.01836879]
[1745354161239,0.32909679,91110.0,91109.0,0.01836879]
[1745354161895,0.42553679,91110.0,91109.0,0.01836879]
[1745354181089,0.26945594,91110.0,91109.0,0.01836879]
[1745354181306,0.21915594,91110.0,91109.0,0.01836879]
[1745354181532,0.12275594,91110.0,91109.0,0.01836879]
[1745354181755,0.00013852,91111.0,91109.0,0.01936879]
[1745354182004,0.00013852,91111.0,91109.0,0.06926879]
[1745354182459,0.001,91110.0,91109.0,0.06926879]
[1745354182667,0.001,91110.0,91109.0,0.11836879]
[1745354182879,0.00013852,91111.0,91109.0,0.11936879]
[1745354183095,0.00013852,91111.0,91110.0,0.00219501]
[1745354183347,0.09878752,91134.0,91110.0,0.00219501]
[1745354183564,0.1,91127.0,91124.0,0.25570279]
[1745354183809,0.11614346,91126.0,91120.0,0.25570279]
[1745354183996,0.21614346,91126.0,91120.0,0.25570279]
[1745354184206,0.21614346,91126.0,91117.0,0.25570279]
[1745354185060,0.21714346,91126.0,91124.0,0.001]
[1745354185274,0.21714346,91126.0,91120.0,0.002]
[1745354185515,0.21614346,91126.0,91117.0,0.25570279]
[1745354185673,0.21714346,91126.0,91117.0,0.25870279]
[1745354186706,0.21714346,91126.0,91117.0,0.26070279]
[1745354186910,0.21714346,91126.0,91117.0,0.25870279]
[1745354187156,0.21714346,91126.0,91117.0,0.26070279]
[1745354187686,0.21614346,91126.0,91117.0,0.25770279]
[1745354188020,0.21714346,91126.0,91120.0,0.003]
[1745354188431,0.21614346,91126.0,91117.0,0.25770279]
[1745354188737,0.21714346,91126.0,91117.0,0.26070279]
[1745354189142,0.21614346,91126.0,91117.0,0.25770279]
[1745354189452,0.21614346,91126.0,91117.0,0.25570279]
[1745354189635,0.21714346,91126.0,91120.0,0.005]
[1745354190094,0.21714346,91126.0,91120.0,0.003]
[1745354190263,0.21475594,91126.0,91120.0,0.003]
[1745354190648,0.00238752,91125.0,91120.0,0.003]
[1745354190854,0.11375594,91124.0,91120.0,0.006]
[1745354191050,0.00238752,91123.0,91120.0,0.003]
[1745354192294,0.00338752,91123.0,91120.0,0.006]
[1745354192522,0.001,91123.0,91120.0,0.004]
[1745354192728,0.001,91123.0,91120.0,0.006]
[1745354192931,0.001,91123.0,91120.0,0.004]
[1745354193148,0.11614346,91122.0,91120.0,0.004]
[1745354193353,0.11614346,91122.0,91120.0,0.006]
[1745354194034,0.11614346,91122.0,91120.0,0.004]
[1745354194210,0.11614346,91122.0,91120.0,0.003]
[1745354194533,0.11614346,91122.0,91120.0,0.005]
[1745354194735,0.21614346,91122.0,91120.0,0.005]
[1745354195348,0.21614346,91122.0,91120.0,0.003]
[1745354195591,0.21614346,91122.0,91120.0,0.005]
[1745354196020,0.21614346,91122.0,91120.0,0.003]
[1745354196519,0.21614346,91122.0,91120.0,0.001]
[1745354197374,0.21614346,91122.0,91120.0,0.002]
[1745354199337,0.21614346,91122.0,91120.0,0.001]
[1745354200062,0.21614346,91122.0,91120.0,0.002]
[1745354200386,0.06254085,91121.0,91120.0,0.002]
[1745354200525,0.44498516,91121.0,91120.0,0.003]
[1745354200706,0.32549679,91121.0,91120.0,0.004]
[1745354201122,0.32549679,91121.0,91120.0,0.003]
[1745354201344,0.32549679,91121.0,91120.0,0.004]
[1745354201970,0.32549679,91121.0,91120.0,0.003]
[1745354202203,0.01454085,91120.0,91109.0,0.01836879]
[1745354202381,0.01454085,91111.0,91109.0,0.01936879]
[1745354202582,0.22704431,91110.0,91109.0,0.01936879]
[1745354202786,0.32704431,91110.0,91109.0,0.01936879]
[1745354202983,0.32465679,91110.0,91109.0,0.01936879]
[1745354203500,0.32465679,91110.0,91109.0,0.02036879]
[1745354203911,0.32465679,91110.0,91109.0,0.02136879]
[1745354204041,0.32565679,91110.0,91109.0,0.02136879]
[1745354204246,0.32565679,91110.0,91109.0,0.02036879]
[1745354204643,0.32765679,91110.0,91109.0,0.02136879]
[1745354205362,0.32769679,91110.0,91109.0,0.02136879]
[1745354207480,0.23129679,91110.0,91109.0,0.02136879]
[1745354207728,0.32769679,91110.0,91109.0,0.02136879]
[1745354208669,0.23129679,91110.0,91109.0,0.02136879]
[1745354208873,0.32769679,91110.0,91109.0,0.02136879]
[1745354209043,0.23129679,91110.0,91109.0,0.02136879]
[1745354209351,0.32769679,91110.0,91109.0,0.02136879]
[1745354210666,0.31307594,91110.0,91109.0,0.02136879]
[1745354211257,0.31107594,91110.0,91109.0,0.02036879]
[1745354211802,0.21475594,91110.0,91109.0,0.01936879]
[1745354211943,0.31007594,91110.0,91109.0,0.01936879]
[1745354212585,0.31107594,91110.0,91109.0,0.01936879]
[1745354213641,0.31007594,91110.0,91109.0,0.01936879]
[1745354214094,0.21475594,91110.0,91109.0,0.01936879]
[1745354214422,0.31007594,91110.0,91109.0,0.01936879]
[1745354215723,0.101,91110.0,91109.0,0.01936879]
[1745354215935,0.001,91110.0,91109.0,0.01936879]
[1745354216152,0.09632,91118.0,91109.0,0.01936879]
[1745354216595,0.09632,91118.0,91110.0,0.00022215]
[1745354217221,0.001,91118.0,91110.0,0.00022215]
[1745354218972,0.001,91118.0,91110.0,0.00422215]
[1745354219168,0.50832,91125.0,91110.0,0.00022215]
[1745354219419,0.11375594,91124.0,91115.0,0.38964287]
[1745354219594,0.001,91118.0,91115.0,0.38964287]
[1745354219866,0.001,91118.0,91110.0,0.00522215]
[1745354220087,0.09632,91132.0,91111.0,0.0478]
[1745354220307,0.001,91118.0,91111.0,0.0478]
[1745354220746,0.00247374,91131.0,91111.0,0.0478]
[1745354220933,0.00247374,91131.0,91121.0,0.38964287]
[1745354222286,0.00247374,91131.0,91121.0,0.39164287]
[1745354222940,0.00247374,91131.0,91121.0,0.39364287]
[1745354224274,8.622e-05,91131.0,91121.0,0.39364287]
[1745354226045,8.622e-05,91131.0,91121.0,0.38964287]
[1745354226249,8.622e-05,91131.0,91121.0,0.39164287]
[1745354226441,0.00208622,91131.0,91121.0,0.39164287]
[1745354230087,0.00208622,91131.0,91121.0,0.38964287]
[1745354230293,0.00208622,91131.0,91121.0,0.39164287]
[1745354230781,8.622e-05,91131.0,91121.0,0.38964287]
[1745354230981,8.622e-05,91131.0,91121.0,0.39164287]
[1745354232253,8.622e-05,91131.0,91121.0,0.38964287]
[1745354232429,8.622e-05,91131.0,91121.0,0.39064287]
[1745354232668,8.622e-05,91131.0,91121.0,0.39164287]
[1745354239471,8.622e-05,91131.0,91121.0,0.25766334]
[1745354242795,0.0468,91130.0,91121.0,0.25766334]
[1745354243802,0.0468,91130.0,91121.0,0.25666334]
[1745354244282,0.0468,91130.0,91121.0,0.001]
[1745354245644,0.0468,91130.0,91121.0,0.002]
[1745354250806,0.0468,91130.0,91121.0,0.001]
[1745354251011,0.0468,91130.0,91121.0,0.002]
[1745354254339,0.16194346,91129.0,91121.0,0.002]
[1745354254539,0.0468,91128.0,91121.0,0.002]